Workbook

Sheet Dépôts et déposants
A2: Nombre de documents cartographiques reçus par dépôt légal
A3: DL Cartes et plans | B3: 2016 | C3: 2017 | D3: 2018
B4: 2294 | C4: 2263 | D4: 1878
A6: Source : Entrées dépôt légal
A8: Nombre des dépôts et déposants par catégorie de déposants
A9: DL Cartes et plans | B9: 2016 | E9: 2017 | H9: 2018
A10: Catégorie déposant | B10: Nb déposants | C10: Nb nouveaux déposants | D10: Nb dépôts | E10: Nb déposants | F10: Nb nouveaux déposants | G10: Nb dépôts | H10: Nb déposants | I10: Nb nouveaux déposants | J10: Nb dépôts
A11: Administration centrale | B11: 2 | C11: 0 | D11: 2 | E11: 2 | F11: 1 | G11: 2
A12: Associations et assimilés | B12: 8 | C12: 3 | D12: 1019 | E12: 8 | F12: 3 | G12: 734 | H12: 16 | I12: 10 | J12: 638
A13: Auteurs auto-édités | B13: 5 | C13: 2 | D13: 8 | E13: 2 | F13: 0 | G13: 2 | H13: 4 | I13: 1 | J13: 11
A14: Club de livres | B14: 1 | C14: 0 | D14: 7 | E14: 2 | F14: 0 | G14: 5 | J14: 4
A15: Collectivité locale | B15: 16 | C15: 13 | D15: 54 | E15: 38 | F15: 26 | G15: 102 | H15: 32 | I15: 17 | J15: 73
A16: Collectivités publiques | B16: 11 | C16: 2 | D16: 444 | E16: 23 | F16: 8 | G16: 854 | H16: 15 | I16: 6 | J16: 591
A17: Déposant PO
A18: Editeurs étrangers | B18: 2 | C18: 0 | D18: 83 | E18: 2 | F18: 0 | G18: 49 | H18: 1 | J18: 43
A19: Editeurs professionnels | B19: 84 | C19: 21 | D19: 646 | E19: 106 | F19: 29 | G19: 441 | H19: 95 | I19: 24 | J19: 446
A20: Diffuseur | H20: 1 | I20: 1 | J20: 7
A21: Importateur | H21: 1
A22: Imprimeurs professionnels
A23: Pas de catégorie déposant | B23: 11 | C23: 9 | D23: 18 | E23: 19 | F23: 13 | G23: 64 | H23: 11 | I23: 6 | J23: 12
A24: Personne physique | B24: 6 | C24: 4 | D24: 12 | E24: 6 | F24: 5 | G24: 6 | H24: 11 | I24: 6 | J24: 13
A25: Prestataire de service
A26: Recherche
A27: Sociétés et assimilés | B27: 1 | C27: 1 | D27: 1 | E27: 2 | F27: 2 | G27: 3
A28: Total | B28: =SUM(B11:B27) -> 147 | C28: 55 | D28: 2294 | E28: 210 | F28: 87 | G28: 2262 | H28: 189 | I28: 71 | J28: 1878
A29: Source : Entrées dépôt légal
A31: Nombre des dépôts et déposants par département et région de déposants
A32: DL Cartes et plans | D32: 2016 | G32: 2017 | J32: 2018
A33: France | B33: Région | C33: Département déposant (code) | D33: Nb déposants | E33: Nb nvx déposants | F33: Nb dépôts | G33: Nb déposants | H33: Nb nvx déposants | I33: Nb dépôts | J33: Nb déposants | K33: Nb nvx déposants | L33: Nb dépôts
B34: Département inconnu | D34: 0 | E34: 0 | F34: 0 | G34: 0 | H34: 0 | I34: 0
B35: Auvergne - Rhône Alpes | C35: 1 | D35: 0 | E35: 0 | F35: 0 | G35: 0 | H35: 0 | I35: 0 | L35: 1
C36: 3 | D36: 0 | E36: 0 | F36: 0 | G36: 0 | H36: 0 | I36: 0
C37: 7 | D37: 0 | E37: 0 | F37: 0 | G37: 0 | H37: 0 | I37: 0
C38: 15 | D38: 0 | E38: 0 | F38: 0 | G38: 0 | H38: 0 | I38: 0
C39: 26 | D39: 3 | E39: 1 | F39: 8 | G39: 0 | H39: 0 | I39: 0 | L39: 2
C40: 38 | D40: 3 | E40: 1 | F40: 31 | G40: 4 | H40: 1 | I40: 36 | L40: 25
C41: 42 | D41: 0 | E41: 0 | F41: 0 | G41: 0 | H41: 0 | I41: 0 | L41: 1
C42: 43 | D42: 0 | E42: 0 | F42: 0 | G42: 1 | H42: 1 | I42: 1 | L42: 1
C43: 63 | D43: 3 | E43: 2 | F43: 34 | G43: 5 | H43: 2 | I43: 33 | L43: 39
C44: 69 | D44: 3 | E44: 0 | F44: 27 | G44: 5 | H44: 3 | I44: 28 | L44: 22
C45: 73 | D45: 2 | E45: 1 | F45: 3 | G45: 0 | H45: 0 | I45: 0
C46: 74 | D46: 2 | E46: 1 | F46: 2 | G46: 3 | H46: 1 | I46: 5 | L46: 3
B47: Bourgogne - Franche-Comté | C47: 21 | D47: 3 | E47: 2 | F47: 4 | G47: 5 | H47: 3 | I47: 5 | L47: 3
C48: 25 | D48: 1 | E48: 0 | F48: 3 | G48: 3 | H48: 1 | I48: 5 | L48: 2
C49: 39 | D49: 0 | E49: 0 | F49: 0 | G49: 1 | H49: 1 | I49: 1 | L49: 3
C50: 58 | D50: 0 | E50: 0 | F50: 0 | G50: 1 | H50: 1 | I50: 2
C51: 70 | D51: 0 | E51: 0 | F51: 0 | G51: 1 | H51: 0 | I51: 7 | L51: 1
C52: 71 | D52: 1 | E52: 1 | F52: 1 | G52: 1 | H52: 1 | I52: 1 | L52: 3
C53: 89 | D53: 0 | E53: 0 | F53: 0 | G53: 0 | H53: 0 | I53: 0
C54: 90 | D54: 0 | E54: 0 | F54: 0 | G54: 0 | H54: 0 | I54: 0
B55: Bretagne | C55: 22 | D55: 0 | E55: 0 | F55: 0 | G55: 0 | H55: 0 | I55: 0
C56: 29 | D56: 4 | E56: 2 | F56: 154 | G56: 3 | H56: 0 | I56: 206 | L56: 213
C57: 35 | D57: 3 | E57: 1 | F57: 24 | G57: 3 | H57: 2 | I57: 25 | L57: 10
C58: 56 | D58: 1 | E58: 1 | F58: 38 | G58: 2 | H58: 1 | I58: 21 | L58: 15
B59: Centre - Val-de-Loire | C59: 18 | D59: 0 | E59: 0 | F59: 0 | G59: 0 | H59: 0 | I59: 0
C60: 28 | D60: 1 | E60: 0 | F60: 1 | G60: 2 | H60: 2 | I60: 28 | L60: 13
C61: 36 | D61: 0 | E61: 0 | F61: 0 | G61: 1 | H61: 0 | I61: 1
C62: 37 | D62: 0 | E62: 0 | F62: 0 | G62: 1 | H62: 0 | I62: 10 | L62: 42
C63: 41 | D63: 0 | E63: 0 | F63: 0 | G63: 1 | H63: 1 | I63: 1
C64: 45 | D64: 1 | E64: 0 | F64: 1 | G64: 4 | H64: 3 | I64: 5 | L64: 2
B65: Corse | C65: 20 | D65: 2 | E65: 1 | F65: 5 | G65: 1 | H65: 0 | I65: 2 | L65: 9
B66: Grand-Est | C66: 8 | D66: 0 | E66: 0 | F66: 0 | G66: 0 | H66: 0 | I66: 0
C67: 10 | D67: 1 | E67: 0 | F67: 1 | G67: 0 | H67: 0 | I67: 0 | L67: 1
C68: 51 | D68: 0 | E68: 0 | F68: 0 | G68: 0 | H68: 0 | I68: 0
C69: 52 | D69: 0 | E69: 0 | F69: 0 | G69: 1 | H69: 0 | I69: 1
C70: 54 | D70: 0 | E70: 0 | F70: 0 | G70: 0 | H70: 0 | I70: 0
C71: 55 | D71: 0 | E71: 0 | F71: 0 | G71: 1 | H71: 0 | I71: 3
C72: 57 | D72: 1 | E72: 0 | F72: 2 | G72: 0 | H72: 0 | I72: 0
C73: 67 | D73: 3 | E73: 1 | F73: 3 | G73: 2 | H73: 1 | I73: 3 | L73: 8
C74: 68 | D74: 0 | E74: 0 | F74: 0 | G74: 3 | H74: 2 | I74: 5
C75: 88 | D75: 1 | E75: 1 | F75: 1 | G75: 0 | H75: 0 | I75: 0 | L75: 2
B76: Hauts-de-France | C76: 2 | D76: 0 | E76: 0 | F76: 0 | G76: 2 | H76: 2 | I76: 2 | L76: 1
C77: 59 | D77: 4 | E77: 2 | F77: 14 | G77: 9 | H77: 6 | I77: 17 | L77: 1
C78: 60 | D78: 0 | E78: 0 | F78: 0 | G78: 0 | H78: 0 | I78: 0 | L78: 1
C79: 62 | D79: 3 | E79: 3 | F79: 3 | G79: 2 | H79: 0 | I79: 2 | L79: 2
C80: 80 | D80: 0 | E80: 0 | F80: 0 | G80: 2 | H80: 1 | I80: 3 | L80: 7
B81: Ile-de-France | C81: 75 | D81: 36 | E81: 7 | F81: 1155 | G81: 50 | H81: 16 | I81: 900 | L81: 715
C82: 77 | D82: 0 | E82: 0 | F82: 0 | G82: 1 | H82: 0 | I82: 1 | L82: 1
C83: 78 | D83: 3 | E83: 2 | F83: 4 | G83: 2 | H83: 1 | I83: 2 | L83: 7
C84: 91 | D84: 0 | E84: 0 | F84: 0 | G84: 3 | H84: 1 | I84: 10 | L84: 2
C85: 92 | D85: 5 | E85: 0 | F85: 272 | G85: 7 | H85: 2 | I85: 159 | L85: 161
C86: 93 | D86: 6 | E86: 3 | F86: 110 | G86: 2 | H86: 0 | I86: 3 | L86: 59
C87: 94 | D87: 3 | E87: 1 | F87: 196 | G87: 2 | H87: 2 | I87: 490 | L87: 358
C88: 95 | D88: 0 | E88: 0 | F88: 0 | G88: 1 | H88: 0 | I88: 2
B89: Normandie | C89: 14 | D89: 0 | E89: 0 | F89: 0 | G89: 2 | H89: 1 | I89: 2 | L89: 2
C90: 27 | D90: 1 | E90: 0 | F90: 1 | G90: 0 | H90: 0 | I90: 0
C91: 50 | D91: 0 | E91: 0 | F91: 0 | G91: 0 | H91: 0 | I91: 0 | L91: 1
C92: 61 | D92: 1 | E92: 1 | F92: 1 | G92: 1 | H92: 1 | I92: 1
C93: 76 | D93: 1 | E93: 1 | F93: 1 | G93: 2 | H93: 0 | I93: 4
B94: Nouvelle-Aquitaine | C94: 16 | D94: 0 | E94: 0 | F94: 0 | G94: 1 | H94: 1 | I94: 1
C95: 17 | D95: 0 | E95: 0 | F95: 0 | G95: 1 | H95: 1 | I95: 1 | L95: 2
C96: 19 | D96: 0 | E96: 0 | F96: 0 | G96: 0 | H96: 0 | I96: 0
C97: 23 | D97: 0 | E97: 0 | F97: 0 | G97: 0 | H97: 0 | I97: 0
C98: 24 | D98: 0 | E98: 0 | F98: 0 | G98: 0 | H98: 0 | I98: 0
C99: 33 | D99: 5 | E99: 0 | F99: 43 | G99: 5 | H99: 2 | I99: 42 | L99: 25
C100: 40 | D100: 0 | E100: 0 | F100: 0 | G100: 0 | H100: 0 | I100: 0
C101: 47 | D101: 0 | E101: 0 | F101: 0 | G101: 1 | H101: 0 | I101: 41
C102: 64 | D102: 3 | E102: 2 | F102: 4 | G102: 3 | H102: 2 | I102: 4 | L102: 5
C103: 79 | D103: 2 | E103: 1 | F103: 2 | G103: 1 | H103: 0 | I103: 3 | L103: 1
C104: 86 | D104: 0 | E104: 0 | F104: 0 | G104: 0 | H104: 0 | I104: 0
C105: 87 | D105: 0 | E105: 0 | F105: 0 | G105: 1 | H105: 0 | I105: 1 | L105: 4
B106: Occitanie | C106: 9 | D106: 1 | E106: 0 | F106: 1 | G106: 0 | H106: 0 | I106: 0
C107: 11 | D107: 0 | E107: 0 | F107: 0 | G107: 0 | H107: 0 | I107: 0
C108: 12 | D108: 1 | E108: 1 | F108: 1 | G108: 2 | H108: 1 | I108: 2 | L108: 1
C109: 30 | D109: 0 | E109: 0 | F109: 0 | G109: 0 | H109: 0 | I109: 0
C110: 31 | D110: 5 | E110: 0 | F110: 9 | G110: 10 | H110: 2 | I110: 16 | L110: 4
C111: 32 | D111: 0 | E111: 0 | F111: 0 | G111: 0 | H111: 0 | I111: 0
C112: 34 | D112: 5 | E112: 4 | F112: 10 | G112: 4 | H112: 0 | I112: 4 | L112: 4
C113: 46 | D113: 1 | E113: 0 | F113: 1 | G113: 1 | H113: 1 | I113: 1 | L113: 1
C114: 48 | D114: 0 | E114: 0 | F114: 0 | G114: 0 | H114: 0 | I114: 0
C115: 65 | D115: 1 | E115: 1 | F115: 1 | G115: 0 | H115: 0 | I115: 0 | L115: 1
C116: 66 | D116: 1 | E116: 1 | F116: 2 | G116: 3 | H116: 2 | I116: 3
C117: 81 | D117: 2 | E117: 2 | F117: 5 | G117: 1 | H117: 0 | I117: 1 | L117: 3
C118: 82 | D118: 0 | E118: 0 | F118: 0 | G118: 1 | H118: 0 | I118: 2
B119: Outre-mer | C119: 970 | D119: 0 | E119: 0 | F119: 0 | G119: 0 | H119: 0 | I119: 0
C120: 971 | D120: 0 | E120: 0 | F120: 0 | G120: 0 | H120: 0 | I120: 0
C121: 972 | D121: 2 | E121: 2 | F121: 2 | G121: 0 | H121: 0 | I121: 0
C122: 973 | D122: 0 | E122: 0 | F122: 0 | G122: 1 | H122: 1 | I122: 1
C123: 974 | D123: 1 | E123: 0 | F123: 4 | G123: 2 | H123: 0 | I123: 2 | L123: 3
C124: 975 | D124: 0 | E124: 0 | F124: 0 | G124: 0 | H124: 0 | I124: 0
C125: 976 | D125: 0 | E125: 0 | F125: 0 | G125: 1 | H125: 0 | I125: 1
C126: 987 | D126: 0 | E126: 0 | F126: 0 | G126: 0 | H126: 0 | I126: 0
C127: 988 | D127: 0 | E127: 0 | F127: 0 | G127: 0 | H127: 0 | I127: 0
B128: Pays de la Loire | C128: 44 | D128: 3 | E128: 2 | F128: 6 | G128: 2 | H128: 1 | I128: 4 | L128: 12
C129: 49 | D129: 1 | E129: 0 | F129: 1 | G129: 1 | H129: 0 | I129: 1 | L129: 1
C130: 53 | D130: 0 | E130: 0 | F130: 0 | G130: 1 | H130: 0 | I130: 12 | L130: 3
C131: 72 | D131: 0 | E131: 0 | F131: 0 | G131: 2 | H131: 1 | I131: 3 | L131: 2
C132: 85 | D132: 1 | E132: 0 | F132: 6 | G132: 3 | H132: 1 | I132: 8 | L132: 7
B133: Provence-Alpes-Côte d'Azur | C133: 4 | D133: 0 | E133: 0 | F133: 0 | G133: 1 | H133: 0 | I133: 1 | L133: 2
C134: 5 | D134: 0 | E134: 0 | F134: 0 | G134: 1 | H134: 1 | I134: 1 | L134: 1
C135: 6 | D135: 2 | E135: 1 | F135: 5 | G135: 5 | H135: 0 | I135: 7 | L135: 4
C136: 13 | D136: 3 | E136: 1 | F136: 4 | G136: 5 | H136: 0 | I136: 5 | L136: 2
C137: 83 | D137: 0 | E137: 0 | F137: 0 | G137: 0 | H137: 0 | I137: 0 | L137: 3
C138: 84 | D138: 0 | E138: 0 | F138: 0 | G138: 0 | H138: 0 | I138: 0 | L138: 1
A139: Total France | D139: =SUM(D34:D138) -> 142 | E139: =SUM(E34:E138) -> 54 | F139: =SUM(F34:F138) -> 2207 | G139: =SUM(G34:G138) -> 203 | H139: 77 | I139: 2201 | L139: =SUM(L35:L138) -> 1831
A140: Hors France | B140: Belgique | D140: 1 | E140: 0 | F140: 2 | G140: 0 | H140: 0 | I140: 0 | L140: 2
B141: Finlande | D141: 1 | E141: 1 | F141: 1 | G141: 0 | H141: 0 | I141: 0
B142: Monaco | D142: 0 | E142: 0 | F142: 0 | G142: 1 | H142: 0 | I142: 1 | L142: 1
B143: Suisse | D143: 1 | E143: 0 | F143: 1 | G143: 1 | H143: 0 | I143: 1
B144: Royaume-Uni | L144: 1
B145: Pologne | D145: 1 | E145: 0 | F145: 82 | G145: 1 | H145: 0 | I145: 48 | L145: 43
A146: Total hors France | D146: =SUM(D140:D145) -> 4 | E146: 1 | F146: 86 | G146: 3 | H146: 0 | I146: 50 | L146: =SUM(L140:L145) -> 47
A147: TOTAL GENERAL | D147: =SUM(D139,D146) -> 146 | E147: 55 | F147: 2293 | G147: 206 | H147: 77 | I147: 2251 | L147: 1878
D148: Source : Entrées dépôt légal
A151: Liste des 10 principaux déposants par année de dépôt
A152: DL Cartes et plans | B152: 2016 | D152: DL Cartes et plans | E152: 2017 | G152: DL Cartes et plans | H152: 2018
A153: Fédération Française de Course d'Orientation | B153: 966 | D153: Fédération Française de Course d'Orientation | E153: 672 | G153: Fédération Française de Course d'Orientation | H153: 575
A154: Manufacture française des pneumatiques Michelin | B154: 265 | D154: Institut national de l'information géographique et forestière | E154: 488 | G154: Institut national de l'information géographique et forestière | H154: 350
A155: Institut national de l'information géographique et forestière | B155: 194 | D155: Service hydrographique et océanographique de la marine | E155: 201 | G155: Service hydrographique et océanographique de la marine | H155: 211
A156: Service hydrographique et océanographique de la marine | B156: 151 | D156: Manufacture française des pneumatiques Michelin | E156: 125 | G156: Manufacture française des pneumatiques Michelin | H156: 136
A157: Blay Foldex | B157: 100 | D157: Régie autonome des transports parisiens | E157: 54 | G157: Blay Foldex | H157: 54
A158: ExpressMap | B158: 82 | D158: Fédération française de la randonnée pédestre | E158: 52 | G158: Fédération française de la randonnée pédestre | H158: 47
A159: Régie autonome des transports parisiens | B159: 57 | D159: ExpressMap | E159: 48 | G159: ExpressMap | H159: 43
A160: Fédération française de la randonnée pédestre | B160: 47 | D160: Ligue d'Aquitaine de Course d'Orientation (FFCO) | E160: 41 | G160: Chamina édition | H160: 26
A161: Comité départemental du Morbihan de course d'orientation | B161: 38 | D161: Service de l'information aéronautique | E161: 37 | G161: Résomédia | H161: 22
A162: Service de l'information aéronautique | B162: 34 | D162: Glénat (Editions ) | E162: 31 | G162: Glénat (Editions ) | H162: 21
A163: Total | B163: =SUM(B153:B162) -> 1934 | D163: Total | E163: =SUM(E153:E162) -> 1749 | G163: Total | H163: =SUM(H153:H162) -> 1485
A164: Source : Entrées dépôt légal

Sheet Thématique
A2: Nombre de documents cartographiques signalés dans la bibliographie nationale - répartition par classe thématique
A3: DL Cartes et plans | C3: 2016 | E3: 2017 | F3: 2018
A4: Ciel | C4: 5 | E4: 7 | F4: 11
A5: Mers | C5: 158 | E5: 199 | F5: 204
A6: Monde | C6: 44 | E6: 65 | F6: 63
B7: Entier | C7: 41 | E7: 63 | F7: 61
B8: Parties | C8: 3 | E8: 2 | F8: 2
A9: Arctique et Antarctique | C9: - | E9: - | F9: -
A10: Afrique | C10: 15 | E10: 131 | F10: 21
B11: Entière | C11: - | E11: 5 | F11: 1
B12: Parties | C12: 5 | E12: 0 | F12: 2
B13: Pays/Territoires A-L | C13: 1 | E13: 1 | F13: 2
B14: Pays/Territoires M-Z | C14: 9 | E14: 125 | F14: 16
A15: Amérique | C15: 25 | E15: 19 | F15: 18
B16: Entière | C16: - | E16: 0 | F16: -
B17: Parties | C17: 4 | E17: 0 | F17: 2
B18: Pays/Territoires A-G | C18: 19 | E18: 19 | F18: 13
B19: Pays/Territoires H-Z | C19: 2 | E19: 0 | F19: 3
A20: Asie | C20: 10 | E20: 15 | F20: 13
B21: Entière | C21: 1 | E21: 2 | F21: -
B22: Parties | C22: 1 | E22: 1 | F22: -
B23: Pays/Territoires A-J | C23: 3 | E23: 5 | F23: 10
B24: Pays/Territoires K-Z | C24: 5 | E24: 7 | F24: 3
A25: Europe (hors France) | C25: 177 | E25: 104 | F25: =SUM(F26:F29) -> 113
B26: Entière | C26: 5 | E26: 5 | F26: 5
B27: Parties | C27: 41 | E27: 16 | F27: 28
B28: Pays/Territoires A-L | C28: 91 | E28: 61 | F28: 51
B29: Pays/Territoires M-Z | C29: 40 | E29: 22 | F29: 29
A30: Océanie | C30: 3 | E30: 1 | F30: 3
B31: Entière | C31: - | E31: 0 | F31: 0
B32: Parties | C32: 1 | E32: 0 | F32: 2
B33: Pays/Territoires | C33: 2 | E33: 1 | F33: 1
A34: France | C34: 1137 | D34: Nouvelles régions (créées en 2016) | E34: 1130 | F34: =SUM(F35:F49) -> 1210
B35: Entière | C35: 289 | E35: 388 | F35: 401
B36: Parties | C36: 55 | E36: 45 | F36: 32
B37: Alsace | C37: 14 | D37: Auvergne- Rhône-Alpes | E37: 162 | F37: 180
B38: Aquitaine | C38: 51 | D38: Bourgogne - Franche-Comté | E38: 44 | F38: 49
B39: Auvergne | C39: 10 | D39: Bretagne | E39: 55 | F39: 62
B40: Basse-Normandie | C40: 23 | D40: Centre - Val de Loire | E40: 11 | F40: 35
B41: Bourgogne | C41: 32 | D41: Corse | E41: 3 | F41: 17
B42: Bretagne | C42: 48 | D42: Grand Est | E42: 49 | F42: 62
B43: Centre | C43: 8 | D43: Hauts-de-France | E43: 11 | F43: 17
B44: Champagne-Ardenne | C44: 3 | D44: Île-de-France | E44: 112 | F44: 68
B45: Corse | C45: 12 | D45: Normandie | E45: 16 | F45: 37
B46: Franche-Comté | C46: 9 | D46: Nouvelle-Aquitaine | E46: 64 | F46: 69
B47: Haute-Normandie | C47: 16 | D47: Occitanie | E47: 78 | F47: 101
B48: Île-de-France | C48: 131 | D48: Pays-de-la-Loire | E48: 30 | F48: 32
B49: Languedoc-Roussillon | C49: 30 | D49: Provence-Alpes-Côte d'Azur | E49: 62 | F49: 48
B50: Limousin | C50: 6
B51: Lorraine | C51: 26
B52: Midi-Pyrénées | C52: 77
B53: Nord-Pas-de-Calais | C53: 11
B54: Pays-de-la-Loire | C54: 14
B55: Picardie | C55: 11
B56: Poitou-Charentes | C56: 30
B57: Provence-Alpes-CA | C57: 65
B58: Rhône-Alpes | C58: 166
A59: Total | C59: =SUM(C34,C30,C25,C20,C15,C10,C9,C6,C5,C4) -> 1574 | E59: 1671 | F59: 1656
A60: Source : Bibliographie nationale française - Documents cartographiques

Sheet Répartition typologique
A2: Nombre de documents par type de document
A3: DL Cartes et plans | B3: 2016 | C3: 2017 | D3: 2018
A4: atlas (en feuilles) | C4: 6 | D4: 5
A5: atlas (relié ou broché) | B5: 24 | C5: 128 | D5: 107
A6: atlas céleste | B6: 2 | C6: 4 | D6: 2
A7: atlas historique | B7: 3 | C7: 16 | D7: 8
A8: atlas national | C8: 2
A9: atlas nautique | C9: 1
A10: atlas pour enfants | B10: 1 | C10: 21 | D10: 16
A11: atlas régional | B11: 5 | C11: 3 | D11: 2
A12: atlas routier | B12: 16 | C12: 8 | D12: 21
A13: atlas scolaire | C13: 3 | D13: 1
A14: atlas thématique | B14: 36 | C14: 92 | D14: 85
A15: atlas universel | B15: 1 | C15: 1 | D15: 2
A16: carte | B16: 25 | C16: 33 | D16: 61
A17: carte aéronautique | B17: 28 | C17: 50 | D17: 25
A18: carte céleste | B18: 2 | C18: 1 | D18: 8
A19: carte en braille | B19: 1
A20: carte marine | B20: 124 | C20: 195 | D20: 198
A21: carte murale | B21: 5 | C21: 8 | D21: 1
A22: carte nautique | C22: 45 | D22: 2
A23: carte ou plan en relief | B23: 5 | C23: 2 | D23: 3
A24: carte routière | B24: 227 | C24: 156 | D24: 219
A25: carte scolaire | D25: 1
A26: carte thématique | B26: 97 | C26: 34 | D26: 21
A27: carte topographique | B27: 170 | C27: 363 | D27: 245
A28: curiosité cartographique | C28: 31 | D28: 16
A29: fac-simile | C29: 1
A30: fond de carte
A31: globe | C31: 1 | D31: 5
A32: guide | B32: 208 | C32: 226 | D32: 288
A33: image de télédétection
A34: jeu géographique | B34: 9 | C34: 18 | D34: 12
A35: légende cartographique | B35: 1
A36: matériel didactique | D36: 2
A37: ouvrage pour la jeunesse | B37: 2 | C37: 22 | D37: 16
A38: panorama | D38: 1
A39: photocarte, photoplan
A40: photographie aérienne | D40: 1
A41: plan | B41: 918 | C41: 360 | D41: 671
A42: plan de ville (feuille) | B42: 158 | C42: 104 | D42: 119
A43: plan de ville (relié, broché) | B43: 24 | C43: 19 | D43: 13
A44: plan ou dessin de bâtiment
A45: plan parcellaire | C45: 1
A46: plan perspectif
A47: répertoire géographique | B47: 13
A48: spatiocarte
A49: tableau d’assemblage | B49: 3 | C49: 2 | D49: 2
A50: tableau, graphique, diagramme | C50: 1
A51: vue | C51: 1
A52: Total | B52: =SUM(B4:B51) -> 2108 | C52: =SUM(C4:C51) -> 1959 | D52: =SUM(D4:D51) -> 2179
A53: Source : Bibliographie nationale française - Documents cartographiques
A54: NB. Un document peut avoir plusieurs typologies (ex : plan de ville et jeu géographique), ce qui explique que le chiffre total excède le nombre d'entrées.

Sheet Feuil1
